fUSD/lending_fUSD_20240327
["ID","MTS","AMOUNT","RATE_DAILY","PERIOD"]
[320712371,1711527033221,-320.11650737,0.00034396,2]
[320712372,1711527033231,-320.11650737,0.00034396,2]
[320712373,1711527033240,-320.11650737,0.00034396,2]
[320712374,1711527033250,-320.11650737,0.00034396,2]
[320712375,1711527033260,-320.11650737,0.00034396,2]
[320712376,1711527033270,-500.0,0.00034404,7]
[320712377,1711527033280,-429.25617808,0.00034404,7]
[320712378,1711527033289,-500.0,0.00034404,7]
[320712379,1711527033300,-168.33486966,0.00034404,4]
[320712380,1711527033310,-498.90679421,0.00034404,2]
[320712381,1711527033319,-707.53653922,0.00034404,4]
[320712382,1711527033328,-94924.45,0.00034406,2]
[320712383,1711527033338,-378.62,0.00034479,2]
[320712384,1711527033348,-320.11650737,0.0003454,2]
[320712385,1711527033358,-1284.22377766,0.0003455,2]
[320712386,1711527033367,-378.62,0.00034571,2]
[320712387,1711527033381,-158.26,0.0003465,15]
[320712388,1711527033390,-378.62,0.00034663,2]
[320712389,1711527033400,-197.0,0.000347,2]
[320712390,1711527033409,-200.0,0.00034746,2]
[320712391,1711527033418,-180.33,0.00034754,120]
[320712392,1711527033427,-378.62,0.00034755,2]
[320712393,1711527033438,-155.75,0.00034758,2]
[320712394,1711527033449,-320.11650737,0.0003478,2]
[320712395,1711527033458,-1546.18232701,0.0003479,2]
[320712396,1711527033468,-320.11650737,0.0003479,2]
[320712397,1711527033478,-1000.0,0.00034795,2]
[320712398,1711527033487,-1571.85581649,0.000348,2]
[320712399,1711527033503,-245.14418351,0.000348,2]
[320712400,1711527033513,-200.0,0.00034817,2]
[320712401,1711527033523,-378.62,0.00034848,2]
[320712402,1711527033532,-378.62,0.0003494,2]
[320712403,1711527033542,-182.74077982,0.00035018,2]
[320712404,1711527033551,-378.62,0.00035032,2]
[320712405,1711527033561,-378.62,0.00035125,2]
[320712406,1711527033571,-255.88925526,0.00035135,4]
[320712407,1711527033581,-339.96,0.00035157,2]
[320712408,1711527033594,-320.11650737,0.00035174,2]
[320712409,1711527033604,-320.11650737,0.00035174,2]
[320712410,1711527033614,-320.11650737,0.00035174,2]
[320712411,1711527033623,-320.11650737,0.00035174,2]
[320712412,1711527033635,-320.11650737,0.00035174,2]
[320712413,1711527033644,-320.11650737,0.00035174,2]
[320712414,1711527033656,-17643.24,0.00035184,2]
[320712415,1711527033667,-378.62,0.00035217,2]
[320712416,1711527033677,-180.56,0.00035254,120]
[320712417,1711527033687,-320.11650737,0.0003526,2]
[320712418,1711527033700,-1193.9,0.0003527,2]
[320712419,1711527033710,-378.62,0.00035309,2]
[320712420,1711527033720,-378.62,0.00035401,2]
[320712421,1711527033730,-250.0,0.0003542,110]
[320712422,1711527033740,-200.0,0.00035425,2]
[320712423,1711527033751,-958.79,0.00035439,60]
[320712424,1711527033761,-320.11650737,0.00035448,2]
[320712425,1711527033771,-250.0,0.00035458,2]
[320712426,1711527033782,-320.11650737,0.00035806,2]
[320712427,1711527033792,-5821.29,0.00035816,2]
[320712428,1711527033802,-320.11650737,0.00035829,2]
[320712429,1711527033811,-150.11,0.00035839,2]
[320712430,1711527033821,-170.09,0.00036057,2]
[320712431,1711527033832,-262.28,0.00036115,2]
[320712432,1711527033842,-169.92,0.00036118,2]
[320712433,1711527033852,-182.74077982,0.00036271,2]
[320712434,1711527033862,-180.56,0.00036624,120]
[320712435,1711527033872,-320.11650737,0.00036748,2]
[320712436,1711527033881,-5042.89,0.00036758,2]
[320712437,1711527034163,-320.11650737,0.0003686,2]
[320712438,1711527034177,-259.28,0.0003687,2]
[320712439,1711527034187,-320.11650737,0.0003687,2]
[320712440,1711527034199,-4870.12410273,0.0003688,2]
[320712441,1711527034209,-2518.165802,0.000369,28]
[320712442,1711527034219,-300.0,0.00036983,2]
[320712443,1711527034229,-207.68065277,0.00036999,4]
[320712444,1711527034239,-680.06373145,0.00037084,4]
[320712445,1711527034248,-160.49455242,0.00037084,4]
[320712446,1711527034258,-314.49296793,0.00037087,7]
[320712447,1711527034267,-1284.2237776,0.00037093,2]
[320712448,1711527034277,-1500.0,0.000374,28]
[320712449,1711527034287,-198.66440947,0.00037426,30]
[320712450,1711527034298,-182.74077982,0.00037524,2]
[320712451,1711527034307,-180.0,0.00037613,2]
[320712452,1711527034318,-2575.92844936,0.00037701,4]
[320712453,1711527034328,-13515.15759266,0.00037702,4]
[320712454,1711527034337,-1710.70529348,0.00037804,4]
[320712455,1711527034346,-9517.55831826,0.00037805,4]
[320712456,1711527034355,-294.708785,0.00037808,14]
[320712457,1711527034365,-1500.0,0.000379,28]
[320712458,1711527034374,-180.56,0.00037993,120]
[320712459,1711527034384,-5859.81548037,0.00038,120]
[320712460,1711527034394,-1000.0,0.00038371,2]
[320712461,1711527034405,-1500.0,0.000384,28]
[320712462,1711527034415,-294.708785,0.0003863,14]
[320712463,1711527034424,-155.0,0.000387,4]
[320712464,1711527034434,-182.74077982,0.00038777,2]
[320712465,1711527034445,-362.24421757,0.00038835,4]
[320712466,1711527034454,-302.407232,0.00038844,4]
[320712467,1711527034464,-204.0832479,0.00038845,11]
[320712468,1711527034474,-116844.67057594,0.000389,30]
[320712469,1711527034483,-177.642045,0.000389,120]
[320712470,1711527034493,-1500.0,0.000389,28]
[320712471,1711527034502,-3573.39781198,0.00038904,9]
[320712472,1711527034511,-259.28,0.00038935,2]
[320712473,1711527034521,-872.36142499,0.00038945,10]
[320712474,1711527034530,-7681.0,0.00038945,4]
[320712475,1711527034540,-19516.0,0.00038945,4]
[320712476,1711527034550,-87737.0,0.00038945,4]
[320712477,1711527034559,-814.64935609,0.00039004,4]
[320712478,1711527034569,-261.29301243,0.00039039,4]
[320712479,1711527034578,-247.33284002,0.00039039,4]
[320712480,1711527034588,-540.12494334,0.00039039,15]
[320712481,1711527034602,-3556.92758185,0.00039039,4]
[320712482,1711527034612,-181.39095975,0.00039039,4]
[320712483,1711527034621,-500.0,0.00039039,2]
[320712484,1711527034631,-3843.87810236,0.00039039,2]
[320712485,1711527034641,-161.33131735,0.00039039,4]
[320712486,1711527034651,-505.23113167,0.00039039,4]
[320712487,1711527034661,-210.85464628,0.0003904,4]
[320712488,1711527034671,-1215.10857904,0.0003904,4]
[320712489,1711527034680,-279.51290624,0.0003904,4]
[320712490,1711527034691,-244.03539236,0.0003904,4]
[320712491,1711527034703,-214.34519899,0.0003904,4]
[320712492,1711527034713,-4870.12410273,0.00039381,2]
[320712493,1711527034723,-294.708785,0.00039452,14]
[320712494,1711527034733,-5042.89,0.00039497,2]
[320712495,1711527034742,-1284.2237776,0.00039635,2]
[320712496,1711527034751,-163.35113449,0.000399,2]
[320712497,1711527034761,-208.34986372,0.0003999,2]
[320712498,1711527034772,-500.0,0.00039999,31]
[320712499,1711527034782,-500.0,0.00039999,31]
[320712500,1711527034793,-500.0,0.00039999,31]
[320712501,1711527034804,-500.0,0.00039999,31]
[320712502,1711527034814,-156.14366532,0.00039999,31]
[320712503,1711527034827,-500.0,0.00039999,31]
[320712504,1711527034839,-500.0,0.00039999,31]
[320712505,1711527034848,-608.13289108,0.00039999,31]
[320712506,1711527034858,-447.2362484,0.00039999,31]
[320712507,1711527034867,-101.66053613,0.00039999,31]
[320712508,1711527034882,-417.06971042,0.00039999,31]
[320712509,1711527034894,-63.94517598,0.00039999,31]
[320712510,1711527034904,-350.0,0.00039999,31]
[320712511,1711527034913,-350.0,0.00039999,31]
[320712512,1711527034923,-371.36131812,0.0004,120]
[320712513,1711527034935,-169.91487586,0.0004,120]
[320712514,1711527034945,-152.58878235,0.0004,4]
[320712515,1711527035019,-500.0,0.00034404,7]
[320712516,1711527035029,-500.0,0.00034404,7]
[320712517,1711527035039,-3482.9702347,0.0004,4]
[320712518,1711527035052,-14850.79675021,0.0004,4]
[320712519,1711527035084,-3876.68998215,0.0004,4]
[320712520,1711527035200,-286.18192272,0.00034404,7]
[320712521,1711527035212,-213.81807728,0.00034404,7]
[320712522,1711527035222,-173.69292963,0.00034404,7]
[320712523,1711527035341,-326.30707037,0.00034404,7]
[320712524,1711527035351,-344.15105592,0.00034404,7]
[320712527,1711527038125,-155.84894408,0.00034404,7]
[320712528,1711527038134,-276.59256168,0.00034404,7]
[320712529,1711527038144,-500.0,0.00034404,7]
[320712530,1711527038153,-500.0,0.00034404,7]
[320712531,1711527038163,-500.0,0.00034404,7]
[320712532,1711527038172,-500.0,0.00034404,7]
[320712533,1711527038182,-500.0,0.00034404,7]
[320712534,1711527038191,-500.0,0.00034404,7]
[320712535,1711527038202,-62.77849424,0.00034404,7]
[320712536,1711527038236,-0.00281462,0.00034404,7]
[320712537,1711527038253,-437.21869114,0.00034404,7]
[320712538,1711527038262,-500.0,0.00034404,7]
[320712539,1711527038272,-500.0,0.00034404,7]
[320712540,1711527038281,-500.0,0.00034404,7]
[320712541,1711527038290,-500.0,0.00034404,7]
[320712542,1711527038299,-560.54879216,0.00034404,7]
[320712543,1711527038309,-500.0,0.00034404,7]
[320712544,1711527038319,-500.0,0.00034404,7]
[320712545,1711527038329,-500.0,0.00034404,7]
[320712546,1711527038338,-500.0,0.00034404,7]
[320712547,1711527038347,-500.0,0.00034404,7]
[320712548,1711527038358,-500.0,0.00034404,7]
[320712549,1711527038367,-500.0,0.00034404,7]
[320712550,1711527038377,-500.0,0.00034404,7]
[320712551,1711527038386,-500.0,0.00034404,7]
[320712552,1711527038398,-500.0,0.00034404,7]
[320712553,1711527038407,-500.0,0.00034404,7]
[320712554,1711527038417,-500.0,0.00034404,7]
[320712555,1711527038426,-4753.15701994,0.0004,4]
[320712556,1711527038435,-3357.71176501,0.0004,4]
[320712557,1711527038447,-7937.94912886,0.0004,4]
[320712558,1711527038458,-5743.01202704,0.0004,4]
[320712559,1711527038467,-10431.7034283,0.0004,7]
[320712561,1711527038477,-892.02580912,0.0004,30]
[320712562,1711527038486,-182.74077982,0.0004003,2]
[320712564,1711527038495,-294.708785,0.00040274,14]
[320712565,1711527038504,-7841.77272824,0.00041,4]
[320712566,1711527038514,-294.708785,0.00041096,14]
[320712567,1711527038523,-183.0,0.00041096,2]
[320712568,1711527038532,-182.74077982,0.00041283,2]
[320712570,1711527038541,-3573.39781197,0.00041316,10]
[320712571,1711527038550,-164.33,0.00041555,2]
[320712572,1711527038560,-150.11,0.00041754,2]
[320712573,1711527038569,-259.28,0.00041871,2]
[320712574,1711527038578,-4870.12410273,0.00041881,2]
[320712575,1711527038589,-294.708785,0.00041918,14]
[320712576,1711527038600,-163.35113449,0.00042125,2]
[320712578,1711527038609,-1284.2237776,0.00042178,2]
[320712580,1711527038618,-182.74077982,0.00042536,2]
[320712581,1711527038627,-1000.0,0.00042635,2]
[320712583,1711527038636,-294.708785,0.0004274,14]
[320712585,1711527038645,-405.1,0.00043071,2]
[320712586,1711527038655,-180.33,0.00043442,120]
[320712588,1711527038665,-294.708785,0.00043562,14]
[320712589,1711527038676,-170.09,0.00043709,2]
[320712590,1711527038686,-3573.39781197,0.00043729,11]
[320712591,1711527038695,-182.74077982,0.00043788,2]
[320712593,1711527038705,-712.61418707,0.00043988,4]
[320712595,1711527038714,-163.35113449,0.0004435,2]
[320712597,1711527038723,-150.0,0.00044373,120]
[320712599,1711527038732,-4870.12410273,0.00044382,2]
[320712601,1711527038740,-294.708785,0.00044384,14]
[320712603,1711527038749,-269.83900737,0.00044444,7]
[320712605,1711527038758,-1840.03,0.00044449,120]
[320712606,1711527038767,-1284.2237776,0.00044721,2]
[320712608,1711527038776,-593.25,0.00044974,2]
[320712610,1711527038785,-593.25,0.00044986,2]
[320712613,1711527038794,-593.25,0.00044998,2]
[320712614,1711527038804,-500.0,0.00045,14]
[320712616,1711527038814,-22038.94073476,0.00045,4]
[320712618,1711527038823,-339.22517766,0.00045,10]
[320712620,1711527038832,-593.25,0.0004501,2]
[320712622,1711527038842,-150.0,0.00045018,120]
[320712623,1711527038851,-593.25,0.00045021,2]
[320712624,1711527038861,-593.25,0.00045033,2]
[320712625,1711527038871,-182.74077982,0.00045041,2]
[320712626,1711527038880,-593.25,0.00045045,2]
[320712627,1711527038891,-593.25,0.00045057,2]
[320712628,1711527038900,-593.25,0.00045069,2]
[320712629,1711527038910,-593.25,0.00045081,2]
[320712630,1711527038922,-593.25,0.00045092,2]
[320712631,1711527038932,-181.74660482,0.000451,2]
[320712632,1711527038942,-593.25,0.00045104,2]
[320712633,1711527038954,-150.0,0.00045108,120]
[320712634,1711527038963,-593.25,0.00045116,2]
[320712635,1711527038972,-593.25,0.00045128,2]
[320712636,1711527038981,-593.25,0.0004514,2]
[320712637,1711527038990,-593.25,0.00045152,2]
[320712638,1711527038999,-593.25,0.00045163,2]
[320712639,1711527039008,-593.25,0.00045175,2]
[320712640,1711527039018,-593.25,0.00045187,2]
[320712641,1711527039027,-593.25,0.00045199,2]
[320712642,1711527039036,-294.708785,0.00045205,14]
[320712643,1711527039046,-808.41680128,0.00045257,2]
[320712644,1711527039055,-405.1,0.00045335,2]
[320712645,1711527039064,-259.42,0.00045671,120]
[320712646,1711527039074,-998.25,0.00045931,2]
[320712647,1711527039084,-22077.78,0.00045931,30]
[320712648,1711527039094,-3573.39781197,0.00046141,12]
[320712649,1711527039105,-182.74077982,0.00046294,2]
[320712650,1711527039115,-1952.72398702,0.00046432,4]
[320712651,1711527039125,-163.35113449,0.00046575,2]
[320712652,1711527039134,-4870.12410273,0.00046883,2]
[320712653,1711527039144,-1000.0,0.00046898,2]
[320712654,1711527039154,-1026.94712488,0.00047,2]
[320712655,1711527039164,-808.41680128,0.00047043,2]
[320712656,1711527039173,-5821.29,0.00047049,120]
[320712657,1711527039184,-1284.2237776,0.00047263,2]
[320712658,1711527039192,-182.74077982,0.00047547,2]
[320712659,1711527039204,-405.1,0.00047599,2]
[320712660,1711527039213,-160.17758889,0.0004772,30]
[320712661,1711527039222,-10000.0,0.00047726,30]
[320712662,1711527039233,-160.13519834,0.00047774,30]
[320712663,1711527039242,-1000.0,0.000479,17]
[320712664,1711527039252,-160.17758889,0.00047956,30]
[320712665,1711527039263,-150.0,0.00047979,120]
[320712666,1711527039272,-503.6111413,0.00048,100]
[320712667,1711527039282,-560.75087012,0.00048,4]
[320712668,1711527039292,-157.25738244,0.00048022,30]
[320712669,1711527039302,-156.40801093,0.00048092,30]
[320712670,1711527039489,-259.28,0.0004819,2]
[320712671,1711527039500,-194533.82982686,0.000482,120]
[320712672,1711527039509,-249.9491637,0.0004829,4]
[320712673,1711527039519,-158.06606792,0.00048319,30]
[320712674,1711527039531,-164.33,0.00048414,2]
[320712675,1711527039540,-158.06606792,0.00048452,30]
[320712676,1711527039550,-1484.469,0.00048464,2]
[320712677,1711527039558,-2984.163,0.00048464,2]
[320712678,1711527039569,-364.087,0.00048464,2]
[320712679,1711527039578,-152.063,0.00048464,2]
[320712680,1711527039588,-2423.0,0.00048464,2]
[320712681,1711527039600,-1651.455,0.00048464,2]
[320712682,1711527039610,-217.0,0.00048464,2]
[320712683,1711527039619,-5680.0,0.00048465,2]
[320712684,1711527039635,-2484.867,0.00048465,2]
[320712685,1711527039644,-42964.0,0.00048465,2]
[320712686,1711527039654,-4813.496,0.00048465,2]
[320712687,1711527039663,-1046.0,0.00048465,2]
[320712688,1711527039673,-3573.39781197,0.00048553,13]
[320712689,1711527039683,-1009.3926,0.000486,120]
[320712690,1711527039693,-2000.0,0.000486,17]
[320712691,1711527039704,-4108.0,0.000486,120]
[320712692,1711527039713,-160.04389286,0.00048612,30]
[320712693,1711527039722,-152.40530738,0.0004862,39]
[320712694,1711527039733,-259.28,0.0004867,2]
[320712695,1711527039742,-3383.2544,0.0004868,2]
[320712696,1711527039752,-392.1619,0.0004868,2]
[320712697,1711527039762,-182.21320044,0.0004868,24]
[320712698,1711527039772,-259.28,0.0004869,2]
[320712699,1711527039781,-259.28,0.0004869,2]
[320712700,1711527039791,-1111.0,0.000487,4]
[320712701,1711527039801,-393103.38843655,0.000487,15]
[320712719,1711527040145,-36142.94097755,0.000487,15]
[320712720,1711527040155,-1017.0,0.000487,117]
[320712721,1711527040164,-3000.0,0.000487,17]
[320712722,1711527040174,-160.17758889,0.00048704,30]
[320712723,1711527040183,-158.94982111,0.00048723,30]
[320712724,1711527040192,-160.17758889,0.00048732,30]
[320712725,1711527040205,-10000.0,0.00048753,30]
[320712726,1711527040214,-259.28,0.0004877,2]
[320712727,1711527040225,-259.28,0.0004877,2]
[320712728,1711527040234,-155.0,0.00048778,4]
[320712729,1711527040243,-360.79039174,0.00048778,4]
[320712730,1711527040252,-2121.41215536,0.00048778,4]
[320712731,1711527040262,-358.38056777,0.00048778,4]
[320712732,1711527040271,-1238.73583062,0.00048778,4]
[320712733,1711527040280,-409.39570111,0.00048778,4]
[320712734,1711527040289,-1034.7094258,0.00048778,4]
[320712735,1711527040298,-613.55627316,0.00048778,4]
[320712736,1711527040307,-166.15643891,0.00048778,4]
[320712737,1711527040317,-259.17178096,0.00048778,4]
[320712738,1711527040327,-280.4640909,0.00048778,4]
[320712739,1711527040336,-3505.6650676,0.00048778,4]
[320712740,1711527040346,-205.25446688,0.00048778,4]
[320712741,1711527040355,-408.16685749,0.00048778,4]
[320712742,1711527040366,-940.53414581,0.00048778,4]
[320712743,1711527040375,-155.47530298,0.00048778,4]
[320712744,1711527040385,-3234.95804175,0.00048778,4]
[320712745,1711527040394,-166.09133163,0.00048778,4]
[320712746,1711527040403,-531.07882235,0.00048778,4]
[320712747,1711527040413,-39801.9525,0.0004878,2]
[320712748,1711527040422,-64952.0915,0.0004878,2]
[320712749,1711527040432,-1802.68724567,0.0004878,2]
[320712750,1711527040443,-245000.0,0.0004878,2]
[320712751,1711527040457,-5000.0,0.0004878,3]
[320712752,1711527040466,-709.36350887,0.00048798,10]
[320712753,1711527040475,-32767.37935355,0.000488,30]
[320712754,1711527040484,-14414.26362141,0.000488,25]
[320712755,1711527040493,-173.78945192,0.000488,33]
[320712756,1711527040502,-182.74077982,0.000488,2]
[320712757,1711527040511,-163.35113449,0.000488,2]
[320712758,1711527040521,-4556.00497224,0.000488,2]
[320712759,1711527040530,-4100.0,0.000488,17]
[320712760,1711527040540,-367.21836941,0.000488,2]
[320712761,1711527040549,-227.08173838,0.000488,2]
[320712762,1711527040559,-1600.0,0.000488,120]
[320712763,1711527040568,-808.41680128,0.00048829,2]
[320712764,1711527040578,-150.0,0.00048836,120]
[320712765,1711527040592,-259.28,0.00048868,2]
[320712766,1711527040604,-90662.75609396,0.00048877,7]
[320712767,1711527040614,-155.0,0.00048878,4]
[320712768,1711527040634,-854.63911886,0.00048878,10]
[320712769,1711527040644,-155.73011324,0.00048878,4]
[320712770,1711527040653,-3044.32575757,0.00048878,40]
[320712771,1711527040664,-1248.6644958,0.00048878,120]
[320712772,1711527040675,-590.90258329,0.00048878,2]
[320712773,1711527040684,-821.13014677,0.00048878,4]
[320712774,1711527040694,-155.75839715,0.00048878,4]
[320712775,1711527040709,-1756.57153444,0.00048878,4]
[320712776,1711527040718,-253.92224754,0.00048878,4]
[320712777,1711527040728,-155.0,0.00048878,2]
[320712778,1711527040737,-2341.23836606,0.00048878,4]
[320712779,1711527040747,-150.0,0.00048879,7]
[320712780,1711527040757,-1053769.64831116,0.0004888,2]
[320712781,1711527040772,-1122.94407473,0.0004888,2]
[320712782,1711527040783,-1521276.97044441,0.0004888,2]
[320712783,1711527040794,-178.38,0.000489,7]
[320712784,1711527040805,-230.24,0.000489,7]
[320712785,1711527040814,-267.33,0.000489,7]
[320712786,1711527040823,-5100.0,0.000489,17]
[320712787,1711527040833,-161.83589466,0.00048914,30]
[320712788,1711527040842,-2023.30618233,0.00049,2]
[320712789,1711527040851,-1752.45825432,0.00049,120]
[320712790,1711527040860,-158.06606792,0.00049313,30]
[320712791,1711527040870,-810.9346388,0.00049315,30]
[320712792,1711527040879,-1193.9,0.00049379,2]
[320712793,1711527040890,-4870.12410273,0.00049384,2]
[320712794,1711527040900,-158.06606792,0.00049456,30]
[320712795,1711527040910,-14414.26362137,0.00049759,26]
[320712796,1711527040920,-170.91822185,0.00049765,30]
[320712797,1711527040929,-1284.2237776,0.00049806,2]
[320712798,1711527040939,-166.66666666,0.0004982,30]
[320712799,1711527040949,-405.1,0.00049863,2]
[320712800,1711527040959,-160.13519834,0.00049934,30]
[320712801,1711527040969,-161.83589466,0.00049982,30]
[320712802,1711527040980,-999.999999,0.0005,2]
[320712803,1711527040989,-233.91285551,0.0005,30]
[320712804,1711527040999,-5000.0,0.0005,30]
[320712805,1711527041009,-500.0,0.0005,120]
[320712806,1711527041019,-740.69425899,0.0005,120]
[320712807,1711527041029,-19367.2863221,0.0005,2]
[320712808,1711527041039,-449.69178296,0.0005,30]
[320712809,1711527041048,-255850.0,0.0005,120]
[320712810,1711527041058,-2076.0,0.00050083,2]
[320712811,1711527041067,-160.17758889,0.000501,60]
[320712812,1711527041076,-160.17758889,0.00050123,60]
[320712813,1711527041085,-2603.68,0.00050137,120]
[320712814,1711527041095,-154.37388192,0.00050143,60]
[320712815,1711527041105,-314.065432,0.00050198,92]
[320712816,1711527041114,-314.065432,0.00050398,100]
[320712817,1711527041123,-166.66666668,0.00050487,60]
[320712818,1711527041132,-163.032716,0.00050498,93]
[320712819,1711527041141,-808.41680128,0.00050615,2]
[320712820,1711527041150,-14414.26362137,0.00050719,27]
[320712821,1711527041161,-156.40801093,0.00050761,60]
[320712822,1711527041170,-155.032716,0.00050798,99]
[320712823,1711527041179,-157.032716,0.00050798,94]
[320712824,1711527041189,-230.24,0.000508,7]
[320712825,1711527041200,-267.33,0.000508,7]
[320712826,1711527041210,-594.17189956,0.000509,120]
[320712827,1711527041220,-594.17189942,0.000509,120]
[320712828,1711527041231,-594.17189942,0.000509,120]
[320712829,1711527041241,-594.17189942,0.000509,120]
[320712830,1711527041250,-594.17189942,0.000509,120]
[320712831,1711527041261,-594.17189942,0.000509,120]
[320712832,1711527041270,-594.17189942,0.000509,120]
[320712833,1711527041280,-594.17189942,0.000509,120]
[320712834,1711527041289,-594.17189942,0.000509,120]
[320712835,1711527041299,-594.17189942,0.000509,120]
[320712836,1711527041309,-594.17189942,0.000509,120]
[320712837,1711527041319,-594.17189942,0.000509,120]
[320712838,1711527041330,-594.17189942,0.000509,120]
[320712839,1711527041339,-594.17189942,0.000509,120]
[320712840,1711527041349,-594.17189942,0.000509,120]
[320712841,1711527041359,-594.17189942,0.000509,120]
[320712842,1711527041367,-594.17189942,0.000509,120]
[320712843,1711527041376,-594.17189942,0.000509,120]
[320712844,1711527041385,-594.17189942,0.000509,120]
[320712845,1711527041394,-594.17189942,0.000509,120]
[320712846,1711527041403,-158.06606792,0.00050931,60]
[320712847,1711527041412,-158.06606792,0.00050955,60]
[320712848,1711527041421,-160.13519834,0.0005096,60]
[320712849,1711527041430,-3573.39781197,0.00050965,14]
[320712850,1711527041440,-6000.0,0.00051,20]
[320712851,1711527041450,-500.0,0.00051,120]
[320712852,1711527041459,-9087.0,0.00051,11]
[320712853,1711527041469,-18666.51698679,0.00051019,10]
[320712854,1711527041478,-2420.0,0.00051046,120]
[320712855,1711527041487,-1401.053,0.00051046,120]
[320712856,1711527041497,-961.0,0.00051046,120]
[320712857,1711527041506,-493.468,0.00051046,120]
[320712858,1711527041516,-152.898,0.00051046,120]
[320712859,1711527041525,-555.134,0.00051046,120]
[320712860,1711527041534,-539.677,0.00051046,120]
[320712861,1711527041544,-1217.707,0.00051046,120]
[320712862,1711527041554,-440.286,0.00051046,120]
[320712863,1711527041564,-613.466,0.00051046,120]
[320712864,1711527041574,-152.40530738,0.00051048,48]
[320712865,1711527041583,-1637.88367925,0.000511,30]
[320712866,1711527041597,-151.5596968,0.00051124,9]
[320712867,1711527041607,-156.40801093,0.0005115,60]
[320712868,1711527041616,-1000.0,0.00051161,120]
[320712869,1711527041625,-314.065432,0.00051198,95]
[320712870,1711527041635,-151.70631409,0.00051212,60]
[320712871,1711527041645,-49256.45048376,0.00051221,8]
[320712872,1711527041654,-17591.0,0.000513,120]
[320712873,1711527041663,-154.18221895,0.00051313,60]
[320712874,1711527041674,-160.13519834,0.00051343,60]
[320712875,1711527041684,-259.42,0.0005138,120]
[320712876,1711527041693,-358.0,0.00051464,120]
[320712877,1711527041704,-150.0,0.00051464,120]
[320712878,1711527041714,-1214.824,0.00051464,120]
[320712879,1711527041723,-42943.0,0.00051465,120]
[320712880,1711527041732,-4771.0,0.00051465,120]
[320712881,1711527041741,-1046.0,0.00051465,120]
[320712882,1711527041750,-12422.43187871,0.000515,120]
[320712883,1711527041760,-157.25738244,0.00051525,60]
[320712884,1711527041770,-150.0,0.00051572,120]
[320712885,1711527041779,-14414.26362137,0.00051678,28]
[320712886,1711527041788,-150.0,0.00051688,120]
[320712887,1711527041797,-158.06606792,0.00051735,60]
[320712888,1711527041806,-158.06606792,0.0005179,60]
[320712889,1711527041816,-302.065432,0.00051798,97]
[320712890,1711527041826,-4870.12410273,0.00051884,2]
[320712891,1711527041835,-5345.7697598,0.000519,30]
[320712892,1711527041844,-500.0,0.00052,120]
[320712893,1711527041854,-150.0,0.00052,30]
[320712894,1711527041863,-3000.0,0.00052054,120]
[320712895,1711527041872,-1324.82,0.00052054,2]
[320712896,1711527041882,-951.26358807,0.00052055,4]
[320712897,1711527041891,-156.40801093,0.00052121,60]
[320712898,1711527041901,-405.1,0.00052127,2]
[320712899,1711527041910,-180.33,0.0005213,120]
[320712900,1711527041918,-3000.0,0.00052191,120]
[320712901,1711527041927,-3000.0,0.00052328,120]
[320712902,1711527041936,-1284.2237776,0.00052349,2]
[320712903,1711527041945,-808.41680128,0.00052401,2]
[320712904,1711527041956,-3000.0,0.00052465,120]
[320712905,1711527041966,-17591.0,0.000525,120]
[320712906,1711527041975,-3000.0,0.00052602,120]
[320712907,1711527041985,-14414.26362137,0.00052637,29]
[320712908,1711527041994,-915.20169318,0.00052706,2]
[320712909,1711527042003,-4556.00497222,0.00052706,2]
[320712910,1711527042012,-367.2183694,0.00052706,120]
[320712911,1711527042022,-227.08173837,0.00052706,2]
[320712912,1711527042030,-3000.0,0.00052739,120]